Workbook

Sheet Project Costs
A1: School Construction Budget
B4: Proposed School Size | H4: 50000 | I4: Sq Ft
J9: Australian Dollars
H10: Per Sq /Ft | J10: Total Costs
B11: Acquisition Costs
C12: Land/Property Costs | H12: 49.09 | J12: =H12*$H$4 -> 2454500
C13: Closing Costs | H13: 1 | J13: =H13*$H$4 -> 50000
C14: Other Charges | H14: 0 | J14: 0
B16: Total Acquisition Costs | H16: =SUM(H12:H15) -> 50.09 | J16: =SUM(J12:J15) -> 2504500
B18: Hard Construction Costs
C19: Predevelopment and Soil Preparation | H19: 1.77 | J19: =H19*$H$4 -> 88500
C20: Structure | H20: 24.78 | J20: 1239000
C21: Plumbing | H21: 3.54 | J21: 177000
C22: Electrical | H22: 7.08 | J22: 354000
C23: Mechanical | H23: 5.31 | J23: 265500
C24: FireProtection | H24: 1.77 | J24: 88500
C25: Internal Walls | H25: 5.31 | J25: 265500
C26: Roofing | H26: 4.43 | J26: 221500
C27: Windows & Doors | H27: 3.54 | J27: 177000
C28: Carpentry | H28: 5.31 | J28: 265500
C29: Plaster | H29: 0.89 | J29: 44500
C30: Finish Floors | H30: 1.77 | J30: 88500
C31: Paint | H31: 1.77 | J31: 88500
C32: Parking & Exteriors | H32: 13.28 | J32: 664000
C33: Cleaning | H33: 0.89 | J33: 44500
C34: Overhead & Utilities | H34: 2.66 | J34: 133000
C35: Hard Costs Contingency | H35: 4.43 | J35: 221500
B36: Total Hard Costs | H36: =SUM(H19:H35) -> 88.53 | J36: =SUM(J19:J35) -> 4426500
B38: Soft Costs
C39: Architectural & Engineering | H39: 4.64 | J39: =H39*$H$4 -> 232000
C40: Builders Risk Insurance | H40: 1.28 | J40: 64000
C41: Real Estate Taxes | H41: 1.44 | J41: 72000
C42: Legal Services | H42: 1.6 | J42: 80000
C44: Consulting Fees
C45: Geo-Technical Engineering | H45: 0.24 | J45: =H45*$H$4 -> 12000
C46: Appraisal Costs | H46: 0.11 | J46: 5500
C47: Market Studies | H47: 0.06 | J47: 3000
C48: Renderings | H48: 0.08 | J48: 4000
C49: Traffic Study | H49: 0.48 | J49: 24000
C50: Environmental Study | H50: 0.13 | J50: 6500
C51: Land Survey | H51: 0.32 | J51: 16000
C52: Land Plat | H52: 0.24 | J52: 12000
C53: Survey(as Built) | H53: 0.46 | J53: 23000
C54: Title Insurance Updates | H54: 0.11 | J54: 5500
C55: Constructions Inspections | H55: 0.24 | J55: 12000
C56: Printing, Reproductions & Photography | H56: 0.17 | J56: 8500
C58: Impact Permit & Connection Fees | H58: 3.68 | J58: 184000
C59: Marketing & Advertising | H59: 4.8 | J59: 240000
C60: General & Administrative Fees | H60: 3.2 | J60: 160000
C61: Soft Costs Contingency | H61: 1.4 | J61: 70000
C63: Sub-Total Soft Costs | H63: =SUM(H39:H61) -> 24.68 | J63: =SUM(J39:J62) -> 1234000
B65: Financing Costs
C66: Doc Stamps/Intangible Tax-PMM | H66: 1.67 | J66: =H66*$H$4 -> 83500
C67: Other Closing Costs | H67: 1.77 | J67: 88500
C68: Interest Reserve | H68: 3.64 | J68: 182000
C70: Sub-total Financing Costs | H70: =SUM(H66:H68) -> 7.08 | J70: =SUM(J66:J68) -> 354000
B72: Total Soft Costs | H72: =H70+H63 -> 31.76 | J72: =J70+J63 -> 1588000
B74: Total Project Costs | H74: =H72+H36+H16 -> 170.38 | J74: =J72+J36+J16 -> 8519000

Sheet Lease Income
C1: Calculating Lease Income | D1: ='Project Costs'!J9 -> Australian Dollars
C3: Lease Amount | D3: ='Project Costs'!J74 -> 8519000 | F3: 2.5
C4: Number of Advance Payments | D4: 3 | F4: 2.75
C5: Number of Payments | D5: =10*12 -> 120 | F5: 3
C6: Payments Per Year | D6: 12 | F6: 3.25
C7: Annual Interest Rate %-age | D7: 3.75 | F7: 3.5
C8: Residual (Assumed 10% ) | D8: =D3*0.1 -> 851900 | F8: 3.5
C9: (For Lease Income Calculation) | F9: 3.75
F10: 4
F11: 4.25
C12: Solution Using TVM Functions | F12: 4.5
C13: Regular Monthly Payment | D13: =IF(D4>10,"Too Many Advance Payments",(D3-PV((D7/100)/D6,D5,0,-D8))/(PV((D7/100)/D6,D5-D4,-1)+D4)) -> 78647.89813 | F13: 4.75
C14: First Payment at Closing | D14: =D13*D4 -> 235943.6944 | F14: 5
F16: 3.75
F17: 4
F18: 4.25
F19: 4.5
F20: 4.75
F21: 5
F22: 5.25
F23: 5.5
F24: 5.75
F25: 6

Sheet Property Value Realisation
H3: ='Lease Income'!D1 -> Australian Dollars
D4: Total Cost of Property | H4: ='Project Costs'!J74 -> 8519000
D6: Less: Cost of Land | H6: ='Project Costs'!J16 -> 2504500
D7: (Land Cannot be Depreciated)
D9: Depreciable Value of Property | H9: =H4-H6 -> 6014500
G11: Year | H11: Asset Book Value | I11: Depreciation | J11: WDV
D12: Depreciation Assuming 7.5% WDV | G12: 1 | H12: =H9 -> 6014500 | I12: =H12*0.075 -> 451087.5 | J12: =H12-I12 -> 5563412.5
G13: 2 | H13: =J12 -> 5563412.5 | I13: =H13*0.075 -> 417255.9375 | J13: =H13-I13 -> 5146156.562
G14: 3 | H14: =J13 -> 5146156.562 | I14: 385961.7422 | J14: 4760194.82
G15: 4 | H15: 4760194.82 | I15: 357014.6115 | J15: 4403180.209
G16: 5 | H16: 4403180.209 | I16: 330238.5157 | J16: 4072941.693
G17: 6 | H17: 4072941.693 | I17: 305470.627 | J17: 3767471.066
G18: 7 | H18: 3767471.066 | I18: 282560.33 | J18: 3484910.736
G19: 8 | H19: 3484910.736 | I19: 261368.3052 | J19: 3223542.431
G20: 9 | H20: 3223542.431 | I20: 241765.6823 | J20: 2981776.749
G21: 10 | H21: 2981776.749 | I21: 223633.2561 | J21: 2758143.492
D23: Sale Value of Property --- Depreciated for 10 years | J23: =J21 -> 2758143.492
D24: Sale value of Acquired Land --- Assuming 5% Appreciation | J24: =H6*1.05 -> 2629725
D26: Total Realisable Value from Sale of Property at the end of 10th year | J26: 12630344
D27: Assuming Book Value

Sheet Cashflow&Income Stmt Loan Basis
A1: ='Property Value Realisation'!H3 -> Australian Dollars | D1: Basis of One School of 120,000 Sq Ft
F2: Year | G2: Year | H2: Year | I2: Year | J2: Year | K2: Year | L2: Year | M2: Year | N2: Year | O2: Year | P2: Year
F3: Zero | G3: 1 | H3: 2 | I3: 3 | J3: 4 | K3: 5 | L3: 6 | M3: 7 | N3: 8 | O3: 9 | P3: 10
C4: %-age Holding
B5: Inflow | C5: 10 | D5: Major Shareholder | F5: ='Project Costs'!J74*C5*0.01 -> 851900
C6: =100-C5 -> 90 | D6: Individual Investors -(Loan Finance) | F6: ='Project Costs'!J74-'Cashflow&Income Stmt Loan Basis'!F5 -> 7667100
D8: Lease Income --- As Calculated | G8: ='Lease Income'!$D$13*12 -> 943774.7776 | H8: ='Lease Income'!$D$13*12 -> 943774.7776 | I8: ='Lease Income'!$D$13*12 -> 943774.7776 | J8: ='Lease Income'!$D$13*12 -> 943774.7776 | K8: ='Lease Income'!$D$13*12 -> 943774.7776 | L8: ='Lease Income'!$D$13*12 -> 943774.7776 | M8: ='Lease Income'!$D$13*12 -> 943774.7776 | N8: ='Lease Income'!$D$13*12 -> 943774.7776 | O8: ='Lease Income'!$D$13*12 -> 943774.7776 | P8: ='Lease Income'!$D$13*12 -> 943774.7776
D10: Sale of Asset at 10th Year | P10: ='Property Value Realisation'!J26 -> 12630344
B15: Outflow | D15: Cost of Construction | F15: ='Project Costs'!J74 -> 8519000
C18: 5 | D18: Loan Interest Paid to Individual Investors | G18: =$F$6*$C$18/100 -> 383355 | H18: =$F$6*$C$18/100 -> 383355 | I18: 383355 | J18: 383355 | K18: 383355 | L18: 383355 | M18: 383355 | N18: 383355 | O18: 383355 | P18: 383355
D19: Flat Rate %-age
D21: Corporate Income Taxes from Income Statement-- Paid Following Year | G21: =F52 -> 0 | H21: =G52 -> 21866.45551 | I21: 28632.76801 | J21: 34891.60707 | K21: 40681.03321 | L21: 46036.25238 | M21: 50989.83012 | N21: 55571.88952 | O21: 59810.29447 | P21: 63730.81905
D23: Dividends Paid to Shareholder | G23: =F59 -> 0 | H23: =G59 -> 78719.23984 | I23: 103077.9648 | J23: 125609.7855 | K23: 146451.7195 | L23: 165730.5086 | M23: 183563.3884 | N23: 200058.8023 | O23: 215317.0601 | P23: 229430.9486
D25: Repayment to Individual Investors - Sale of Property | P25: ='Property Value Realisation'!J26 -> 12630344
D26: Repayment to Individual Investors - Shortfall from Internal Generation | P26: =F6-P25 -> -4963244
B29: Net Cash Flow== SURPLUS/(SHORTFALL) | F29: =SUM(F5:F10)-SUM(F15:F27) -> 0 | G29: =SUM(G5:G10)-SUM(G15:G27) -> 560419.7776 | H29: 459834.0822 | I29: 428709.0447 | J29: 399918.385 | K29: 373287.0248 | L29: 348653.0166 | M29: 325866.559 | N29: 304789.0858 | O29: 285292.423 | P29: 5230502.01
B31: Cumulative Cash Flow | F31: =F29 -> 0 | G31: =F31+G29 -> 560419.7776 | H31: =G31+H29 -> 1020253.86 | I31: 1448962.904 | J31: 1848881.289 | K31: 2222168.314 | L31: 2570821.331 | M31: 2896687.89 | N31: 3201476.976 | O31: 3486769.399 | P31: 8717271.409
D32: Cash Flow Return to Major Shareholder | F32: =F29/$F$5 -> 0 | G32: =G29/$F$5 -> 0.6578469041 | H32: 0.5397747179 | I32: 0.5032386955 | J32: 0.4694428748 | K32: 0.4381817406 | L32: 0.4092651915 | M32: 0.3825173835 | N32: 0.3577756612 | O32: 0.334889568 | P32: 6.139807501
F38: Year | G38: Year | H38: Year | I38: Year | J38: Year | K38: Year | L38: Year | M38: Year | N38: Year | O38: Year | P38: Year
D39: Income Statement | F39: Zero | G39: 1 | H39: 2 | I39: 3 | J39: 4 | K39: 5 | L39: 6 | M39: 7 | N39: 8 | O39: 9 | P39: 10
D41: Upfront Profit on Project Completion | F41: 0 | G41: 0 | H41: 0 | I41: 0 | J41: 0 | K41: 0 | L41: 0 | M41: 0 | N41: 0 | O41: 0 | P41: 0
D43: Lease Income | G43: =G8 -> 943774.7776 | H43: =H8 -> 943774.7776 | I43: 943774.7776 | J43: 943774.7776 | K43: 943774.7776 | L43: 943774.7776 | M43: 943774.7776 | N43: 943774.7776 | O43: 943774.7776 | P43: 943774.7776
D45: Total Income | F45: =SUM(F41:F44) -> 0 | G45: =SUM(G41:G44) -> 943774.7776 | H45: =SUM(H41:H44) -> 943774.7776 | I45: 943774.7776 | J45: 943774.7776 | K45: 943774.7776 | L45: 943774.7776 | M45: 943774.7776 | N45: 943774.7776 | O45: 943774.7776 | P45: 943774.7776
D47: Loan Interest Payment | G47: =G18 -> 383355 | H47: =H18 -> 383355 | I47: 383355 | J47: 383355 | K47: 383355 | L47: 383355 | M47: 383355 | N47: 383355 | O47: 383355 | P47: 383355
D48: Book Depreciation | G48: ='Property Value Realisation'!I12 -> 451087.5 | H48: ='Property Value Realisation'!I13 -> 417255.9375 | I48: ='Property Value Realisation'!I14 -> 385961.7422 | J48: ='Property Value Realisation'!I15 -> 357014.6115 | K48: ='Property Value Realisation'!I16 -> 330238.5157 | L48: ='Property Value Realisation'!I17 -> 305470.627 | M48: ='Property Value Realisation'!I18 -> 282560.33 | N48: ='Property Value Realisation'!I19 -> 261368.3052 | O48: ='Property Value Realisation'!I20 -> 241765.6823 | P48: ='Property Value Realisation'!I21 -> 223633.2561
D50: Profit Before Tax | F50: =F45-SUM(F47:F49) -> 0 | G50: =G45-SUM(G47:G49) -> 109332.2776 | H50: 143163.8401 | I50: 174458.0354 | J50: 203405.166 | K50: 230181.2619 | L50: 254949.1506 | M50: 277859.4476 | N50: 299051.4723 | O50: 318654.0952 | P50: 336786.5214
D52: Corporate Taxes (Range from 15%- 39%) Average Assumed 20% | F52: =F50*0.2 -> 0 | G52: =G50*0.2 -> 21866.45551 | H52: 28632.76801 | I52: 34891.60707 | J52: 40681.03321 | K52: 46036.25238 | L52: 50989.83012 | M52: 55571.88952 | N52: 59810.29447 | O52: 63730.81905 | P52: 67357.30428
D54: Profit After Tax | F54: =F50-F52 -> 0 | G54: =G50-G52 -> 87465.82205 | H54: 114531.072 | I54: 139566.4283 | J54: 162724.1328 | K54: 184145.0095 | L54: 203959.3205 | M54: 222287.5581 | N54: 239241.1779 | O54: 254923.2762 | P54: 269429.2171
D57: Return on Investment to Major Shareholder | F57: =F54/$F$5 -> 0 | G57: =G54/$F$5 -> 0.1026714662 | H57: 0.1344419205 | I57: 0.1638295907 | J57: 0.1910131856 | K57: 0.2161580109 | L57: 0.2394169744 | M57: 0.2609315155 | N57: 0.2808324661 | O57: 0.2992408454 | P57: 0.3162685962
D59: Dividends Declared and Paid Following Year -90% of Profit After Tax | F59: =F54*0.9 -> 0 | G59: 78719.23984 | H59: 103077.9648 | I59: 125609.7855 | J59: 146451.7195 | K59: 165730.5086 | L59: 183563.3884 | M59: 200058.8023 | N59: 215317.0601 | O59: 229430.9486 | P59: 242486.2954
D63: Balance Sheet
D65: Share Capital | F65: =$F$5 -> 851900 | G65: =$F$5 -> 851900 | H65: 851900 | I65: 851900 | J65: 851900 | K65: 851900 | L65: 851900 | M65: 851900 | N65: 851900 | O65: 851900 | P65: 851900
D66: Accumulated Reserves | F66: =F54-F59 -> 0 | G66: =F66+G54-G59 -> 8746.582205 | H66: =G66+H54-H59 -> 20199.68941 | I66: 34156.33224 | J66: 50428.74552 | K66: 68843.24647 | L66: 89239.17852 | M66: 111467.9343 | N66: 135392.0521 | O66: 160884.3797 | P66: 187827.3014
D67: Loan from Investors | F67: =$F$6 -> 7667100 | G67: =$F$6 -> 7667100 | H67: 7667100 | I67: 7667100 | J67: 7667100 | K67: 7667100 | L67: 7667100 | M67: 7667100 | N67: 7667100 | O67: 7667100 | P67: =$F$6-P25-P26 -> 0
D68: Taxes Payable | F68: =F52 -> 0 | G68: =G52 -> 21866.45551 | H68: 28632.76801 | I68: 34891.60707 | J68: 40681.03321 | K68: 46036.25238 | L68: 50989.83012 | M68: 55571.88952 | N68: 59810.29447 | O68: 63730.81905 | P68: 67357.30428
D69: Dividents Payable | F69: =F59 -> 0 | G69: =G59 -> 78719.23984 | H69: 103077.9648 | I69: 125609.7855 | J69: 146451.7195 | K69: 165730.5086 | L69: 183563.3884 | M69: 200058.8023 | N69: 215317.0601 | O69: 229430.9486 | P69: 242486.2954
D71: Total Share holders Equity & Liabilities | F71: =SUM(F65:F70) -> 8519000 | G71: =SUM(G65:G70) -> 8628332.278 | H71: 8670910.422 | I71: 8713657.725 | J71: 8756561.498 | K71: 8799610.007 | L71: 8842792.397 | M71: 8886098.626 | N71: 8929519.407 | O71: 8973046.147 | P71: 1349570.901
D73: Leased Property | F73: =F15 -> 8519000 | G73: =F73 -> 8519000 | H73: =G73 -> 8519000 | I73: 8519000 | J73: 8519000 | K73: 8519000 | L73: 8519000 | M73: 8519000 | N73: 8519000 | O73: 8519000 | P73: 0
D74: Accumulated Depreciation | F74: 0 | G74: =G48 -> 451087.5 | H74: =G74+H48 -> 868343.4375 | I74: =H74+I48 -> 1254305.18 | J74: 1611319.791 | K74: 1941558.307 | L74: 2247028.934 | M74: 2529589.264 | N74: 2790957.569 | O74: 3032723.251 | P74: 0
D75: Net Value of Leased Property | F75: =F73-F74 -> 8519000 | G75: =G73-G74 -> 8067912.5 | H75: =H73-H74 -> 7650656.562 | I75: 7264694.82 | J75: 6907680.209 | K75: 6577441.693 | L75: 6271971.066 | M75: 5989410.736 | N75: 5728042.431 | O75: 5486276.749 | P75: 0
D77: Cash & Bank Balances | F77: =F5+F6-F15 -> 0 | G77: =G31 -> 560419.7776 | H77: =H31 -> 1020253.86 | I77: 1448962.904 | J77: 1848881.289 | K77: 2222168.314 | L77: 2570821.331 | M77: 2896687.89 | N77: 3201476.976 | O77: 3486769.399 | P77: 8717271.409
D79: Total Assets & Bank Balances | F79: =F75+F77 -> 8519000 | G79: =G75+G77 -> 8628332.278 | H79: 8670910.422 | I79: 8713657.725 | J79: 8756561.498 | K79: 8799610.007 | L79: 8842792.397 | M79: 8886098.626 | N79: 8929519.407 | O79: 8973046.147 | P79: 8717271.409
F80: =F71-F79 -> 0 | G80: =G71-G79 -> 0 | H80: 0 | I80: 0 | J80: 0 | K80: 0 | L80: 0 | M80: 0 | N80: 0 | O80: 0 | P80: -7367700.508

Sheet Total Share Capital Basis
A1: ='Cashflow&Income Stmt Loan Basis'!A1 -> Australian Dollars | D1: Basis of One School of 120,000 Sq Ft
F2: Year | G2: Year | H2: Year | I2: Year | J2: Year | K2: Year | L2: Year | M2: Year | N2: Year | O2: Year | P2: Year
F3: Zero | G3: 1 | H3: 2 | I3: 3 | J3: 4 | K3: 5 | L3: 6 | M3: 7 | N3: 8 | O3: 9 | P3: 10
C4: %-age Holding
B5: Inflow | C5: 25 | D5: Major Shareholder - Share Capital | F5: ='Project Costs'!J74*C5/100 -> 2129750
C6: =100-C5 -> 75 | D6: Individual Investors - Share Capital | F6: ='Project Costs'!J74-'Total Share Capital Basis'!F5 -> 6389250
D8: Lease Income --- As Calculated | G8: ='Lease Income'!$D$13*12 -> 943774.7776 | H8: ='Lease Income'!$D$13*12 -> 943774.7776 | I8: ='Lease Income'!$D$13*12 -> 943774.7776 | J8: ='Lease Income'!$D$13*12 -> 943774.7776 | K8: ='Lease Income'!$D$13*12 -> 943774.7776 | L8: ='Lease Income'!$D$13*12 -> 943774.7776 | M8: ='Lease Income'!$D$13*12 -> 943774.7776 | N8: ='Lease Income'!$D$13*12 -> 943774.7776 | O8: ='Lease Income'!$D$13*12 -> 943774.7776 | P8: ='Lease Income'!$D$13*12 -> 943774.7776
D10: Sale of Asset at 10th Year | P10: ='Property Value Realisation'!J26 -> 12630344
B15: Outflow | D15: Cost of Construction | F15: ='Project Costs'!J74 -> 8519000
D18: Loan Interest Paid to Individual Investors | G18: 0 | H18: 0 | I18: 0 | J18: 0 | K18: 0 | L18: 0 | M18: 0 | N18: 0 | O18: 0 | P18: 0
D21: Corporate Income Taxes from Income Statement-- Paid Following Year | G21: =F52 -> 0 | H21: =G52 -> 98537.45551 | I21: 105303.768 | J21: 111562.6071 | K21: 117352.0332 | L21: 122707.2524 | M21: 127660.8301 | N21: 132242.8895 | O21: 136481.2945 | P21: 140401.819
D23: Dividends Paid to Shareholder | G23: =F59 -> 0 | H23: =G59 -> 354734.8398 | I23: 379093.5648 | J23: 401625.3855 | K23: 422467.3195 | L23: 441746.1086 | M23: 459578.9884 | N23: 476074.4023 | O23: 491332.6601 | P23: 505446.5486
D25: Repayment to Individual Investors - Sale of Property | P25: ='Property Value Realisation'!J26 -> 12630344
D26: Repayment to Individual Investors - Shortfall from Internal Generation | P26: =F6-P25 -> -6241094
B29: Net Cash Flow== SURPLUS/(SHORTFALL) | F29: =SUM(F5:F10)-SUM(F15:F27) -> 0 | G29: =SUM(G5:G10)-SUM(G15:G27) -> 943774.7776 | H29: 490502.4822 | I29: 459377.4447 | J29: 430586.785 | K29: 403955.4248 | L29: 379321.4166 | M29: 356534.959 | N29: 335457.4858 | O29: 315960.823 | P29: 6539020.41
B31: Cumulative Cash Flow | F31: =F29 -> 0 | G31: =F31+G29 -> 943774.7776 | H31: =G31+H29 -> 1434277.26 | I31: 1893654.704 | J31: 2324241.489 | K31: 2728196.914 | L31: 3107518.331 | M31: 3464053.29 | N31: 3799510.776 | O31: 4115471.599 | P31: 10654492.01
D32: Cash Flow Return to All Shareholders | F32: =F29/($F$5+$F$6) -> 0 | G32: =G29/($F$5+$F$6) -> 0.1107846904 | H32: 0.05757747179 | I32: 0.05392386955 | J32: 0.05054428748 | K32: 0.04741817406 | L32: 0.04452651915 | M32: 0.04185173835 | N32: 0.03937756612 | O32: 0.0370889568 | P32: 0.7675807501
F38: Year | G38: Year | H38: Year | I38: Year | J38: Year | K38: Year | L38: Year | M38: Year | N38: Year | O38: Year | P38: Year
D39: Income Statement | F39: Zero | G39: 1 | H39: 2 | I39: 3 | J39: 4 | K39: 5 | L39: 6 | M39: 7 | N39: 8 | O39: 9 | P39: 10
D41: Upfront Profit on Project Completion | F41: 0 | G41: 0 | H41: 0 | I41: 0 | J41: 0 | K41: 0 | L41: 0 | M41: 0 | N41: 0 | O41: 0 | P41: 0
D43: Lease Income | G43: =G8 -> 943774.7776 | H43: =H8 -> 943774.7776 | I43: 943774.7776 | J43: 943774.7776 | K43: 943774.7776 | L43: 943774.7776 | M43: 943774.7776 | N43: 943774.7776 | O43: 943774.7776 | P43: 943774.7776
D45: Total Income | F45: =SUM(F41:F44) -> 0 | G45: =SUM(G41:G44) -> 943774.7776 | H45: =SUM(H41:H44) -> 943774.7776 | I45: 943774.7776 | J45: 943774.7776 | K45: 943774.7776 | L45: 943774.7776 | M45: 943774.7776 | N45: 943774.7776 | O45: 943774.7776 | P45: 943774.7776
D47: Loan Interest Payment | G47: =G18 -> 0 | H47: =H18 -> 0 | I47: 0 | J47: 0 | K47: 0 | L47: 0 | M47: 0 | N47: 0 | O47: 0 | P47: 0
D48: Book Depreciation | G48: ='Property Value Realisation'!I12 -> 451087.5 | H48: ='Property Value Realisation'!I13 -> 417255.9375 | I48: ='Property Value Realisation'!I14 -> 385961.7422 | J48: ='Property Value Realisation'!I15 -> 357014.6115 | K48: ='Property Value Realisation'!I16 -> 330238.5157 | L48: ='Property Value Realisation'!I17 -> 305470.627 | M48: ='Property Value Realisation'!I18 -> 282560.33 | N48: ='Property Value Realisation'!I19 -> 261368.3052 | O48: ='Property Value Realisation'!I20 -> 241765.6823 | P48: ='Property Value Realisation'!I21 -> 223633.2561
D50: Profit Before Tax | F50: =F45-SUM(F47:F49) -> 0 | G50: =G45-SUM(G47:G49) -> 492687.2776 | H50: 526518.8401 | I50: 557813.0354 | J50: 586760.166 | K50: 613536.2619 | L50: 638304.1506 | M50: 661214.4476 | N50: 682406.4723 | O50: 702009.0952 | P50: 720141.5214
D52: Corporate Taxes (Range from 15%- 39%) Average Assumed 20% | F52: =F50*0.2 -> 0 | G52: =G50*0.2 -> 98537.45551 | H52: =H50*0.2 -> 105303.768 | I52: 111562.6071 | J52: 117352.0332 | K52: 122707.2524 | L52: 127660.8301 | M52: 132242.8895 | N52: 136481.2945 | O52: 140401.819 | P52: 144028.3043
D54: Profit After Tax | F54: =F50-F52 -> 0 | G54: =G50-G52 -> 394149.822 | H54: 421215.072 | I54: 446250.4283 | J54: 469408.1328 | K54: 490829.0095 | L54: 510643.3205 | M54: 528971.5581 | N54: 545925.1779 | O54: 561607.2762 | P54: 576113.2171
D57: Return on Investment to All Shareholders | F57: =F54/$F$5 -> 0 | G57: =G54/($F$5+$F$6) -> 0.04626714662 | H57: =H54/($F$5+$F$6) -> 0.04944419205 | I57: 0.05238295907 | J57: 0.05510131856 | K57: 0.05761580109 | L57: 0.05994169744 | M57: 0.06209315155 | N57: 0.06408324661 | O57: 0.06592408454 | P57: 0.06762685962
D59: Dividends Declared and Paid Following Year -90% of Profit After Tax | F59: =F54*0.9 -> 0 | G59: 354734.8398 | H59: 379093.5648 | I59: 401625.3855 | J59: 422467.3195 | K59: 441746.1086 | L59: 459578.9884 | M59: 476074.4023 | N59: 491332.6601 | O59: 505446.5486 | P59: 518501.8954
D63: Balance Sheet
D65: Share Capital | F65: =$F$5 -> 2129750 | G65: =$F$5 -> 2129750 | H65: 2129750 | I65: 2129750 | J65: 2129750 | K65: 2129750 | L65: 2129750 | M65: 2129750 | N65: 2129750 | O65: 2129750 | P65: 2129750
D66: Accumulated Reserves | F66: =F54-F59 -> 0 | G66: =F66+G54-G59 -> 39414.9822 | H66: =G66+H54-H59 -> 81536.48941 | I66: 126161.5322 | J66: 173102.3455 | K66: 222185.2465 | L66: 273249.5785 | M66: 326146.7343 | N66: 380739.2521 | O66: 436899.9797 | P66: 494511.3014
D67: Loan from Investors | F67: =$F$6 -> 6389250 | G67: =$F$6 -> 6389250 | H67: 6389250 | I67: 6389250 | J67: 6389250 | K67: 6389250 | L67: 6389250 | M67: 6389250 | N67: 6389250 | O67: 6389250 | P67: =$F$6-P25-P26 -> 0
D68: Taxes Payable | F68: =F52 -> 0 | G68: =G52 -> 98537.45551 | H68: 105303.768 | I68: 111562.6071 | J68: 117352.0332 | K68: 122707.2524 | L68: 127660.8301 | M68: 132242.8895 | N68: 136481.2945 | O68: 140401.819 | P68: 144028.3043
D69: Dividents Payable | F69: =F59 -> 0 | G69: =G59 -> 354734.8398 | H69: 379093.5648 | I69: 401625.3855 | J69: 422467.3195 | K69: 441746.1086 | L69: 459578.9884 | M69: 476074.4023 | N69: 491332.6601 | O69: 505446.5486 | P69: 518501.8954
D71: Total Share holders Equity & Liabilities | F71: =SUM(F65:F70) -> 8519000 | G71: =SUM(G65:G70) -> 9011687.278 | H71: 9084933.822 | I71: 9158349.525 | J71: 9231921.698 | K71: 9305638.607 | L71: 9379489.397 | M71: 9453464.026 | N71: 9527553.207 | O71: 9601748.347 | P71: 3286791.501
D73: Leased Property | F73: =F15 -> 8519000 | G73: =F73 -> 8519000 | H73: =G73 -> 8519000 | I73: 8519000 | J73: 8519000 | K73: 8519000 | L73: 8519000 | M73: 8519000 | N73: 8519000 | O73: 8519000 | P73: 0
D74: Accumulated Depreciation | F74: 0 | G74: =G48 -> 451087.5 | H74: =G74+H48 -> 868343.4375 | I74: =H74+I48 -> 1254305.18 | J74: 1611319.791 | K74: 1941558.307 | L74: 2247028.934 | M74: 2529589.264 | N74: 2790957.569 | O74: 3032723.251 | P74: 0
D75: Net Value of Leased Property | F75: =F73-F74 -> 8519000 | G75: =G73-G74 -> 8067912.5 | H75: =H73-H74 -> 7650656.562 | I75: 7264694.82 | J75: 6907680.209 | K75: 6577441.693 | L75: 6271971.066 | M75: 5989410.736 | N75: 5728042.431 | O75: 5486276.749 | P75: 0
D77: Cash & Bank Balances | F77: =F5+F6-F15 -> 0 | G77: =G31 -> 943774.7776 | H77: =H31 -> 1434277.26 | I77: 1893654.704 | J77: 2324241.489 | K77: 2728196.914 | L77: 3107518.331 | M77: 3464053.29 | N77: 3799510.776 | O77: 4115471.599 | P77: 10654492.01
D79: Total Assets & Bank Balances | F79: =F75+F77 -> 8519000 | G79: =G75+G77 -> 9011687.278 | H79: 9084933.822 | I79: 9158349.525 | J79: 9231921.698 | K79: 9305638.607 | L79: 9379489.397 | M79: 9453464.026 | N79: 9527553.207 | O79: 9601748.347 | P79: 10654492.01
F80: =F71-F79 -> 0 | G80: =G71-G79 -> 0 | H80: 0 | I80: 0 | J80: 0 | K80: 0 | L80: 0 | M80: 0 | N80: 0 | O80: 0 | P80: -7367700.508

Sheet Cashflow&Income Stmt Loan EB5
A1: ='Total Share Capital Basis'!A1 -> Australian Dollars | D1: Basis of One School of 120,000 Sq Ft
F2: Year | G2: Year | H2: Year | I2: Year | J2: Year | K2: Year | L2: Year | M2: Year | N2: Year | O2: Year | P2: Year
F3: Zero | G3: 1 | H3: 2 | I3: 3 | J3: 4 | K3: 5 | L3: 6 | M3: 7 | N3: 8 | O3: 9 | P3: 10
C4: %-age Holding
B5: Inflow | C5: 25 | D5: Major Shareholder | F5: ='Project Costs'!J74*C5*0.01 -> 2129750
C6: =100-C5 -> 75 | D6: Individual Investors -(Loan Finance) | F6: ='Project Costs'!J74-'Cashflow&Income Stmt Loan EB5'!F5 -> 6389250
D7: Number of Investors for EB 5 @ US500,000 | E7: =ROUND(F6/500000,0) -> 13
D8: Lease Income --- As Calculated | G8: ='Lease Income'!$D$13*12 -> 943774.7776 | H8: ='Lease Income'!$D$13*12 -> 943774.7776 | I8: ='Lease Income'!$D$13*12 -> 943774.7776 | J8: ='Lease Income'!$D$13*12 -> 943774.7776 | K8: ='Lease Income'!$D$13*12 -> 943774.7776 | L8: ='Lease Income'!$D$13*12 -> 943774.7776 | M8: ='Lease Income'!$D$13*12 -> 943774.7776 | N8: ='Lease Income'!$D$13*12 -> 943774.7776 | O8: ='Lease Income'!$D$13*12 -> 943774.7776 | P8: ='Lease Income'!$D$13*12 -> 943774.7776
D10: EB5- MANAGEMENT INCOME @US50,000/PER INVESTOR | G10: =50000*E7 -> 650000 | H10: 0 | I10: 0 | J10: 0 | K10: 0 | L10: 0 | M10: 0 | N10: 0 | O10: 0 | P10: 0
D12: Sale of Asset at 10th Year | P12: ='Property Value Realisation'!J26 -> 12630344
B17: Outflow | D17: Cost of Construction | F17: ='Project Costs'!J74 -> 8519000
D18: EB5 EXPENSES TOTAL PER INCOME STATEMENT | G18: =SUM(G50:G63) -> 149000
C20: 5 | D20: Loan Interest Paid to Individual Investors | G20: 0 | H20: 0 | I20: 0 | J20: 0 | K20: 0 | L20: =$F$6*$C$20/100 -> 319462.5 | M20: 319462.5 | N20: 319462.5 | O20: 319462.5 | P20: 319462.5
D21: Flat Rate %-age FROM 6TH YEAR
D23: Corporate Income Taxes from Income Statement-- Paid Following Year | G23: =F70 -> 0 | H23: =G70 -> 198737.4555 | I23: 105303.768 | J23: 111562.6071 | K23: 117352.0332 | L23: 122707.2524 | M23: 63768.33012 | N23: 68350.38952 | O23: 72588.79447 | P23: 76509.31905
D25: Dividends Paid to Shareholder | G25: =F77 -> 0 | H25: =G77 -> 715454.8398 | I25: 379093.5648 | J25: 401625.3855 | K25: 422467.3195 | L25: 441746.1086 | M25: 229565.9884 | N25: 246061.4023 | O25: 261319.6601 | P25: 275433.5486
D27: Repayment to Individual Investors - Sale of Property | P27: ='Property Value Realisation'!J26 -> 12630344
D28: Repayment to Individual Investors - Shortfall from Internal Generation | P28: =F6-P27 -> -6241094
B31: Net Cash Flow== SURPLUS/(SHORTFALL) | F31: =SUM(F5:F12)-SUM(F17:F29) -> 0 | G31: =SUM(G5:G12)-SUM(G17:G29) -> 1444774.778 | H31: =SUM(H5:H12)-SUM(H17:H29) -> 29582.4822 | I31: 459377.4447 | J31: 430586.785 | K31: 403955.4248 | L31: 59858.91661 | M31: 330977.959 | N31: 309900.4858 | O31: 290403.823 | P31: =SUM(P5:P12)-SUM(P17:P29) -> 6513463.41
B33: Cumulative Cash Flow | F33: =F31 -> 0 | G33: =F33+G31 -> 1444774.778 | H33: =G33+H31 -> 1474357.26 | I33: 1933734.704 | J33: 2364321.489 | K33: 2768276.914 | L33: 2828135.831 | M33: 3159113.79 | N33: 3469014.276 | O33: 3759418.099 | P33: 10272881.51
D34: Cash Flow Return to Major Shareholder | F34: =F31/$F$5 -> 0 | G34: =G31/$F$5 -> 0.6783776394 | H34: 0.01389011959 | I34: 0.2156954782 | J34: 0.2021771499 | K34: 0.1896726962 | L34: 0.02810607659 | M34: 0.1554069534 | N34: 0.1455102645 | O34: 0.1363558272 | P34: 3.058323
F40: Year | G40: Year | H40: Year | I40: Year | J40: Year | K40: Year | L40: Year | M40: Year | N40: Year | O40: Year | P40: Year
D41: Income Statement | F41: Zero | G41: 1 | H41: 2 | I41: 3 | J41: 4 | K41: 5 | L41: 6 | M41: 7 | N41: 8 | O41: 9 | P41: 10
D43: EB5- MANAGEMENT INCOME @US50,000/PER INVESTOR | G43: =G10 -> 650000 | H43: 0 | I43: 0 | J43: 0 | K43: 0 | L43: 0 | M43: 0 | N43: 0 | O43: 0 | P43: 0
D45: Lease Income | G45: =G8 -> 943774.7776 | H45: =H8 -> 943774.7776 | I45: 943774.7776 | J45: 943774.7776 | K45: 943774.7776 | L45: 943774.7776 | M45: 943774.7776 | N45: 943774.7776 | O45: 943774.7776 | P45: 943774.7776
D47: Total Income | F47: =SUM(F43:F46) -> 0 | G47: =SUM(G43:G46) -> 1593774.778 | H47: =SUM(H43:H46) -> 943774.7776 | I47: 943774.7776 | J47: 943774.7776 | K47: 943774.7776 | L47: 943774.7776 | M47: 943774.7776 | N47: 943774.7776 | O47: 943774.7776 | P47: 943774.7776
D50: Incorporation of Company | G50: 1000
D51: Renewal of Company #1 ($2,000 = $200 X 10 years) | G51: 2000
D52: Appraisal Report ($5,000 each) | G52: 5000
D53: Site Inspection Cost ($25,000 per project) | G53: 25000
D54: Accountant ($600 per year X LP X 10 years) | G54: 6000
D55: Economic Report ($7,500) | G55: 7500
D56: Bridge Loan Closing Fees 1% | G56: 0
D57: Regional Center 1st Payment | G57: 2500
D58: Regional Center 2nd Payment | G58: 5000
D59: 1st Commission ($25,000 at submission) | G59: 25000
D60: 2nd Commission ($25,000 at approval) | G60: 25000
D61: 3rd Commission ($10,000 at Year1) | G61: 10000
D62: I-924 Petition ($15,000 per project) | G62: 15000
D63: Real Estate Lawyer Due Diligence/Registration's Fees | G63: 20000
D65: Loan Interest Payment | G65: =G20 -> 0 | H65: 0 | I65: 0 | J65: 0 | K65: 0 | L65: 319462.5 | M65: 319462.5 | N65: 319462.5 | O65: 319462.5 | P65: 319462.5
D66: Book Depreciation | G66: ='Property Value Realisation'!I12 -> 451087.5 | H66: ='Property Value Realisation'!I13 -> 417255.9375 | I66: ='Property Value Realisation'!I14 -> 385961.7422 | J66: ='Property Value Realisation'!I15 -> 357014.6115 | K66: ='Property Value Realisation'!I16 -> 330238.5157 | L66: ='Property Value Realisation'!I17 -> 305470.627 | M66: ='Property Value Realisation'!I18 -> 282560.33 | N66: ='Property Value Realisation'!I19 -> 261368.3052 | O66: ='Property Value Realisation'!I20 -> 241765.6823 | P66: ='Property Value Realisation'!I21 -> 223633.2561
D68: Profit Before Tax | F68: =F47-SUM(F48:F67) -> 0 | G68: 993687.2776 | H68: 526518.8401 | I68: 557813.0354 | J68: 586760.166 | K68: 613536.2619 | L68: 318841.6506 | M68: 341751.9476 | N68: 362943.9723 | O68: 382546.5952 | P68: 400679.0214
D70: Corporate Taxes (Range from 15%- 39%) Average Assumed 20% | F70: =F68*0.2 -> 0 | G70: =G68*0.2 -> 198737.4555 | H70: =H68*0.2 -> 105303.768 | I70: 111562.6071 | J70: 117352.0332 | K70: 122707.2524 | L70: 63768.33012 | M70: 68350.38952 | N70: 72588.79447 | O70: 76509.31905 | P70: 80135.80428
D72: Profit After Tax | F72: =F68-F70 -> 0 | G72: =G68-G70 -> 794949.822 | H72: =H68-H70 -> 421215.072 | I72: 446250.4283 | J72: 469408.1328 | K72: 490829.0095 | L72: 255073.3205 | M72: 273401.5581 | N72: 290355.1779 | O72: 306037.2762 | P72: 320543.2171
D75: Return on Investment to Major Shareholder | F75: =F72/$F$5 -> 0 | G75: =G72/$F$5 -> 0.3732596887 | H75: 0.1977767682 | I75: 0.2095318363 | J75: 0.2204052742 | K75: 0.2304632044 | L75: 0.1197667897 | M75: 0.1283726062 | N75: 0.1363329864 | O75: 0.1436963382 | P75: 0.1505074385
D77: Dividends Declared and Paid Following Year -90% of Profit After Tax | F77: =F72*0.9 -> 0 | G77: =G72*0.9 -> 715454.8398 | H77: 379093.5648 | I77: 401625.3855 | J77: 422467.3195 | K77: 441746.1086 | L77: 229565.9884 | M77: 246061.4023 | N77: 261319.6601 | O77: 275433.5486 | P77: 288488.8954
D81: Balance Sheet
D83: Share Capital | F83: =$F$5 -> 2129750 | G83: =$F$5 -> 2129750 | H83: 2129750 | I83: 2129750 | J83: 2129750 | K83: 2129750 | L83: 2129750 | M83: 2129750 | N83: 2129750 | O83: 2129750 | P83: 2129750
D84: Accumulated Reserves | F84: =F72-F77 -> 0 | G84: =F84+G72-G77 -> 79494.9822 | H84: =G84+H72-H77 -> 121616.4894 | I84: 166241.5322 | J84: 213182.3455 | K84: 262265.2465 | L84: 287772.5785 | M84: 315112.7343 | N84: 344148.2521 | O84: 374751.9797 | P84: 406806.3014
D85: Loan from Investors | F85: =$F$6 -> 6389250 | G85: =$F$6 -> 6389250 | H85: 6389250 | I85: 6389250 | J85: 6389250 | K85: 6389250 | L85: 6389250 | M85: 6389250 | N85: 6389250 | O85: 6389250 | P85: =$F$6-P27-P28 -> 0
D86: Taxes Payable | F86: =F70 -> 0 | G86: =G70 -> 198737.4555 | H86: 105303.768 | I86: 111562.6071 | J86: 117352.0332 | K86: 122707.2524 | L86: 63768.33012 | M86: 68350.38952 | N86: 72588.79447 | O86: 76509.31905 | P86: 80135.80428
D87: Dividents Payable | F87: =F77 -> 0 | G87: =G77 -> 715454.8398 | H87: 379093.5648 | I87: 401625.3855 | J87: 422467.3195 | K87: 441746.1086 | L87: 229565.9884 | M87: 246061.4023 | N87: 261319.6601 | O87: 275433.5486 | P87: 288488.8954
D89: Total Share holders Equity & Liabilities | F89: =SUM(F83:F88) -> 8519000 | G89: =SUM(G83:G88) -> 9512687.278 | H89: 9125013.822 | I89: 9198429.525 | J89: 9272001.698 | K89: 9345718.607 | L89: 9100106.897 | M89: 9148524.526 | N89: 9197056.707 | O89: 9245694.847 | P89: 2905181.001
D91: Leased Property | F91: =F17 -> 8519000 | G91: =F91 -> 8519000 | H91: =G91 -> 8519000 | I91: 8519000 | J91: 8519000 | K91: 8519000 | L91: 8519000 | M91: 8519000 | N91: 8519000 | O91: 8519000 | P91: 0
D92: Accumulated Depreciation | F92: 0 | G92: =G66 -> 451087.5 | H92: =G92+H66 -> 868343.4375 | I92: =H92+I66 -> 1254305.18 | J92: 1611319.791 | K92: 1941558.307 | L92: 2247028.934 | M92: 2529589.264 | N92: 2790957.569 | O92: 3032723.251 | P92: 0
D93: Net Value of Leased Property | F93: =F91-F92 -> 8519000 | G93: =G91-G92 -> 8067912.5 | H93: =H91-H92 -> 7650656.562 | I93: 7264694.82 | J93: 6907680.209 | K93: 6577441.693 | L93: 6271971.066 | M93: 5989410.736 | N93: 5728042.431 | O93: 5486276.749 | P93: 0
D95: Cash & Bank Balances | F95: =F5+F6-F17 -> 0 | G95: =G33 -> 1444774.778 | H95: 1474357.26 | I95: 1933734.704 | J95: 2364321.489 | K95: 2768276.914 | L95: 2828135.831 | M95: 3159113.79 | N95: 3469014.276 | O95: 3759418.099 | P95: 10272881.51
D97: Total Assets & Bank Balances | F97: =F93+F95 -> 8519000 | G97: =G93+G95 -> 9512687.278 | H97: 9125013.822 | I97: 9198429.525 | J97: 9272001.698 | K97: 9345718.607 | L97: 9100106.897 | M97: 9148524.526 | N97: 9197056.707 | O97: 9245694.847 | P97: 10272881.51
F98: =F89-F97 -> 0 | G98: =G89-G97 -> 0 | H98: 0 | I98: 0 | J98: 0 | K98: 0 | L98: 0 | M98: 0 | N98: 0 | O98: 0 | P98: -7367700.508
